fUST/lending_fUST_20260204
["ID","MTS","AMOUNT","RATE_DAILY","PERIOD"]
[404460646,1770156640852,-500.0,0.00054795,120]
[404460647,1770156640861,-518.91034158,0.00054795,120]
[404460648,1770156640870,-500.0,0.00054795,120]
[404460649,1770156640881,-500.0,0.00054795,120]
[404460650,1770156640890,-613.64178547,0.00054795,120]
[404460651,1770156640899,-500.0,0.00054795,120]
[404460652,1770156640907,-500.0,0.00054795,120]
[404460653,1770156640917,-466.93843241,0.00054795,120]
[404460654,1770156640926,-500.0,0.00054795,120]
[404460655,1770156640935,-500.0,0.00054795,120]
[404460656,1770156640945,-500.0,0.00054795,120]
[404460657,1770156640954,-500.0,0.00054795,120]
[404460658,1770156640963,-500.0,0.00054795,120]
[404460659,1770156640972,-500.0,0.00054795,120]
[404460660,1770156640982,-500.0,0.00054795,120]
[404460661,1770156640991,-500.0,0.00054795,120]
[404460662,1770156641000,-500.0,0.00054795,120]
[404460663,1770156641009,-500.0,0.00054795,120]
[404460664,1770156641018,-500.0,0.00054795,120]
[404460665,1770156641027,-500.0,0.00054795,120]
[404460666,1770156641036,-500.0,0.00054795,120]
[404460667,1770156641046,-500.0,0.00054795,120]
[404460668,1770156641055,-500.0,0.00054795,120]
[404460669,1770156641064,-500.0,0.00054795,120]
[404460670,1770156641078,-500.0,0.00054795,120]
[404460671,1770156641087,-500.0,0.00054795,120]
[404460672,1770156641096,-500.0,0.00054795,120]
[404460673,1770156641105,-500.0,0.00054795,120]
[404460674,1770156641115,-500.0,0.00054795,120]
[404460675,1770156641123,-232.72696724,0.00054795,120]
[404460676,1770156641132,-500.0,0.00054795,120]
[404460677,1770156641142,-500.0,0.00054795,120]
[404460678,1770156641151,-150.0,0.00054795,120]
[404460679,1770156641159,-416.04839991,0.00054795,120]
[404460680,1770156641169,-150.0,0.00054795,120]
[404460681,1770156641178,-150.0,0.00054795,120]
[404460682,1770156641187,-150.0,0.00054795,120]
[404460683,1770156641199,-154.96513259,0.00054795,120]
[404460684,1770156641207,-500.0,0.00054795,120]
[404460685,1770156641217,-500.0,0.00054795,120]
[404460686,1770156641226,-500.0,0.00054795,120]
[404460687,1770156641237,-500.0,0.00054795,120]
[404460688,1770156641248,-555.61422014,0.00054795,120]
[404460689,1770156641259,-500.0,0.00054795,120]
[404460690,1770156641268,-500.0,0.00054795,120]
[404460691,1770156641278,-500.0,0.00054795,85]
[404460692,1770156641287,-500.0,0.00054795,120]
[404460693,1770156641297,-500.0,0.00054795,120]
[404460694,1770156641307,-500.0,0.00054795,85]
[404460695,1770156641316,-500.0,0.00054795,120]
[404460696,1770156641326,-500.0,0.00054795,120]
[404460697,1770156641335,-500.0,0.00054795,120]
[404460698,1770156641345,-500.0,0.00054795,120]
[404460699,1770156641357,-500.0,0.00054795,85]
[404460700,1770156641367,-500.0,0.00054795,120]
[404460701,1770156641378,-172.90957372,0.00054795,120]
[404460702,1770156641388,-500.0,0.00054795,120]
[404460703,1770156641398,-500.0,0.00054795,85]
[404460704,1770156641407,-500.0,0.00054795,120]
[404460705,1770156641417,-500.0,0.00054795,85]
[404460706,1770156641427,-500.0,0.00054795,120]
[404460707,1770156641437,-500.0,0.00054795,120]
[404460708,1770156641446,-500.0,0.00054795,85]
[404460709,1770156641456,-500.0,0.00054795,120]
[404460710,1770156641466,-500.0,0.00054795,120]
[404460711,1770156641475,-500.0,0.00054795,120]
[404460712,1770156641484,-203.90514756,0.00054795,85]
[404460713,1770156641494,-500.0,0.00054795,120]
[404460714,1770156641503,-208.35156949,0.00054795,120]
[404460715,1770156641512,-150.0,0.00054795,120]
[404460716,1770156641521,-150.0,0.00054795,120]
[404460717,1770156641530,-150.0,0.00054795,120]
[404460718,1770156641539,-150.0,0.00054795,120]
[404460719,1770156641548,-500.0,0.00054795,120]
[404460720,1770156641558,-206.5197486,0.00054795,120]
[404460721,1770156641567,-150.0,0.00054795,2]
[404460722,1770156641580,-500.0,0.00054795,120]
[404460723,1770156641590,-385.54889542,0.00054795,120]
[404460724,1770156641601,-500.0,0.00054795,120]
[404460725,1770156641610,-556.06270442,0.00054795,120]
[404460726,1770156641620,-500.0,0.00054795,120]
[404460727,1770156641629,-500.0,0.00054795,120]
[404460728,1770156641639,-500.0,0.00054795,120]
[404460729,1770156641648,-338.78074998,0.00054795,120]
[404460730,1770156641657,-500.0,0.00054795,120]
[404460731,1770156641667,-500.0,0.00054795,120]
[404460732,1770156641676,-500.0,0.00054795,120]
[404460733,1770156641685,-543.255282,0.00054795,120]
[404460734,1770156641696,-598.8969387,0.00054795,120]
[404460735,1770156641706,-150.0,0.00054795,120]
[404460736,1770156641716,-150.0,0.00054795,120]
[404460737,1770156641725,-500.0,0.00054795,120]
[404460738,1770156641734,-150.0,0.00054795,120]
[404460739,1770156641744,-500.0,0.00054795,120]
[404460740,1770156641753,-150.0,0.00054795,120]
[404460741,1770156641762,-500.0,0.00054795,120]
[404460742,1770156641771,-150.0,0.00054795,120]
[404460743,1770156641779,-500.44827673,0.00054795,120]
[404460744,1770156641788,-150.0,0.00054795,120]
[404460745,1770156641798,-169.29764278,0.00054795,120]
[404460746,1770156641807,-150.0,0.00054795,120]
[404460747,1770156641816,-202.09973337,0.00054795,120]
[404460748,1770156641825,-500.0,0.00054795,120]
[404460749,1770156641835,-500.0,0.00054795,120]
[404460750,1770156641844,-500.0,0.00054795,120]
[404460751,1770156641853,-500.0,0.00054795,120]
[404460752,1770156641863,-500.0,0.00054795,120]
[404460753,1770156641872,-500.0,0.00054795,120]
[404460754,1770156641880,-543.41415364,0.00054795,120]
[404460755,1770156641889,-500.0,0.00054795,120]
[404460756,1770156641897,-352.39921014,0.00054795,120]
[404460757,1770156641906,-500.0,0.00054795,120]
[404460758,1770156641915,-500.0,0.00054795,120]
[404460759,1770156641925,-500.0,0.00054795,120]
[404460760,1770156641934,-205.34883603,0.00054795,120]
[404460761,1770156641944,-500.0,0.00054795,120]
[404460762,1770156641955,-500.0,0.00054795,120]
[404460763,1770156641966,-500.0,0.00054795,120]
[404460764,1770156641976,-500.0,0.00054795,120]
[404460765,1770156641985,-500.0,0.00054795,120]
[404460766,1770156641995,-202.64390328,0.00054795,120]
[404460767,1770156642005,-500.0,0.00054795,120]
[404460768,1770156642014,-453.34718384,0.00054795,120]
[404460769,1770156642024,-500.0,0.00054795,120]
[404460770,1770156642033,-500.0,0.00054795,120]
[404460771,1770156642043,-500.0,0.00054795,120]
[404460772,1770156642052,-500.0,0.00054795,120]
[404460773,1770156642062,-500.0,0.00054795,120]
[404460774,1770156642071,-150.0,0.00054795,120]
[404460775,1770156642081,-500.0,0.00054795,120]
[404460776,1770156642091,-371.16340839,0.00054795,120]
[404460777,1770156642100,-192.06852371,0.00054795,120]
[404460778,1770156642110,-150.0,0.00054795,120]
[404460779,1770156642118,-300.85571884,0.00054795,120]
[404460780,1770156642128,-250.34365634,0.00054795,120]
[404460781,1770156642137,-200.77005998,0.00054795,120]
[404460782,1770156642147,-4000.24958631,0.000549,120]
[404460783,1770156642156,-612.19,0.000549,30]
[404460784,1770156642166,-464.0,0.00055,120]
[404460785,1770156642175,-1000.0,0.00055,120]
[404460786,1770156642184,-151.0,0.00055,120]
[404460787,1770156642194,-275.902121,0.000551,120]
[404460788,1770156642203,-151.0,0.00056,120]
[404460789,1770156642212,-1000.0,0.00057,120]
[404460790,1770156642222,-151.0,0.00057,120]
[404460791,1770156642231,-624.08324791,0.00057,120]
[404460792,1770156642240,-197412.17443531,0.00057531,2]
[404460793,1770156642253,-500.0,0.00057534,120]
[404460794,1770156642262,-500.0,0.00057534,120]
[404460795,1770156642271,-500.0,0.00057534,120]
[404460796,1770156642281,-200.0,0.00057534,120]
[404460797,1770156642291,-500.0,0.00057534,120]
[404460798,1770156642301,-500.0,0.00057534,120]
[404460799,1770156642311,-500.0,0.00057534,120]
[404460800,1770156642322,-500.0,0.00057534,55]
[404460801,1770156642332,-500.0,0.00057534,120]
[404460802,1770156642342,-521.38455864,0.00057534,120]
[404460803,1770156642351,-5532.53,0.00057534,120]
[404460804,1770156642360,-500.0,0.00057534,120]
[404460805,1770156642370,-525.94,0.00057534,120]
[404460806,1770156642380,-500.0,0.00057534,120]
[404460807,1770156642389,-500.0,0.00057534,7]
[404460808,1770156642399,-500.0,0.00057534,120]
[404460809,1770156642407,-500.0,0.00057534,120]
[404460810,1770156642416,-500.0,0.00057534,120]
[404460811,1770156642426,-500.0,0.00057534,120]
[404460812,1770156642435,-500.0,0.00057534,120]
[404460813,1770156642444,-518.1,0.00057534,120]
[404460814,1770156642453,-500.0,0.00057534,120]
[404460815,1770156642467,-500.0,0.00057534,120]
[404460816,1770156642476,-541.07,0.00057534,120]
[404460817,1770156642485,-566.15,0.00057534,120]
[404460818,1770156642494,-150.0,0.00057534,120]
[404460819,1770156642504,-500.0,0.00057534,120]
[404460820,1770156642514,-156.92358252,0.00057534,120]
[404460821,1770156642523,-265.39198967,0.00057534,120]
[404460822,1770156642532,-610.95,0.00057534,120]
[404460823,1770156642542,-500.0,0.00057534,2]
[404460824,1770156642551,-500.0,0.00057534,120]
[404460825,1770156642561,-311.51670753,0.00057534,120]
[404460826,1770156642571,-1685.8,0.00057534,30]
[404460827,1770156642580,-500.0,0.00057534,120]
[404460828,1770156642590,-1000.68,0.00057534,120]
[404460829,1770156642600,-664.41,0.00057534,120]
[404460830,1770156642610,-500.0,0.00057534,120]
[404460831,1770156642619,-500.0,0.00057534,120]
[404460832,1770156642628,-832.89,0.00057534,120]
[404460833,1770156642638,-1150.27,0.00057534,120]
[404460834,1770156642647,-500.0,0.00057534,120]
[404460835,1770156642658,-2555.38,0.00057534,120]
[404460836,1770156642668,-500.0,0.00057534,120]
[404460837,1770156642679,-500.0,0.00057534,120]
[404460838,1770156642688,-500.0,0.00057534,120]
[404460839,1770156642698,-500.0,0.00057534,120]
[404460840,1770156642710,-500.0,0.00057534,120]
[404460841,1770156642719,-1966.24,0.00057534,120]
[404460842,1770156642729,-582.24985082,0.00057534,2]
[404460843,1770156642739,-260.24792866,0.00057534,120]
[404460844,1770156642749,-500.0,0.00057534,120]
[404460845,1770156642758,-2436.1,0.00057534,21]
[404460846,1770156642767,-771.22,0.00057534,120]
[404460847,1770156642777,-4552.86,0.00057534,2]
[404460848,1770156642786,-454.13836931,0.00057534,120]
[404460849,1770156642796,-1620.25,0.00057534,120]
[404460850,1770156642805,-500.0,0.00057534,120]
[404460851,1770156642814,-637.38,0.00057534,120]
[404460852,1770156642823,-502.83,0.00057534,120]
[404460853,1770156642832,-500.0,0.00057534,120]
[404460854,1770156642842,-755.7,0.00057534,120]
[404460855,1770156642851,-6331.59,0.00057534,120]
[404460856,1770156642860,-500.0,0.00057534,120]
[404460857,1770156642869,-500.0,0.00057534,120]
[404460858,1770156642879,-500.0,0.00057534,120]
[404460859,1770156642889,-500.0,0.00057534,120]
[404460860,1770156642898,-500.0,0.00057534,120]
[404460861,1770156642907,-1000.0,0.00057534,2]
[404460862,1770156642917,-16493.78,0.00057534,90]
[404460863,1770156643016,-3288.94,0.00057534,2]
[404460864,1770156643035,-919.12403067,0.00057807,30]
[404460865,1770156643044,-12880.09498404,0.00057807,30]
[404460867,1770156643160,-638.74535037,0.00032363,6]
[404460868,1770156643170,-150.0,0.00054795,120]
[404460869,1770156643179,-500.0,0.00054795,120]
[404460870,1770156643188,-500.0,0.00054795,120]
[404460871,1770156643198,-500.0,0.00054795,120]
[404460872,1770156643208,-500.0,0.00054795,120]
[404460873,1770156643218,-10556.80551782,0.00057807,30]
[404460874,1770156643227,-383.40673522,0.00057999,120]
[404460875,1770156643237,-168.14224605,0.00057999,7]
[404460876,1770156643248,-479.32456086,0.00057999,120]
[404460877,1770156643260,-317.32327812,0.00057999,120]
[404460878,1770156643270,-500.0,0.00057999,7]
[404460879,1770156643279,-500.0,0.00057999,7]
[404460880,1770156643290,-540.02014469,0.00057999,7]
[404460881,1770156643299,-500.0,0.00057999,7]
[404460882,1770156643309,-636.01813022,0.00057999,7]
[404460883,1770156643319,-370314.61852293,0.00058,90]
[404460884,1770156643328,-279414.31362856,0.00058,90]
[404460885,1770156643338,-1000.0,0.00058,120]
[404460886,1770156643347,-1011.09705965,0.00058,90]
[404460887,1770156643358,-235.4084828,0.00058,120]
[404460888,1770156643367,-151.0,0.00058,120]
[404460889,1770156643377,-4470.43992116,0.000589,120]
[404460890,1770156643386,-303.42490903,0.00059,120]
[404460891,1770156643395,-1000.0,0.00059,120]
[404460892,1770156643404,-151.0,0.00059,120]
[404460893,1770156643413,-1441.53,0.000594,14]
[404460894,1770156643422,-612.19,0.000594,30]
[404460895,1770156643431,-487.0,0.00059499,120]
[404460896,1770156643440,-487.0,0.00059499,120]
[404460897,1770156643449,-487.0,0.00059499,120]
[404460898,1770156643458,-487.0,0.00059499,120]
[404460899,1770156643467,-487.0,0.00059499,120]
[404460900,1770156643476,-487.0,0.00059499,120]
[404460901,1770156643486,-487.0,0.00059499,120]
[404460902,1770156643495,-487.0,0.00059499,120]
[404460903,1770156643504,-487.0,0.00059499,120]
[404460904,1770156643513,-487.0,0.00059499,120]
[404460905,1770156643523,-487.0,0.00059499,120]
[404460906,1770156643532,-487.0,0.00059499,120]
[404460907,1770156643541,-487.0,0.00059499,120]
[404460908,1770156643550,-487.0,0.00059499,120]
[404460909,1770156643559,-487.0,0.00059499,120]
[404460910,1770156643569,-487.0,0.00059499,120]
[404460911,1770156643579,-487.0,0.00059499,120]
[404460912,1770156643588,-487.0,0.00059499,120]
[404460913,1770156643597,-487.0,0.00059499,120]
[404460914,1770156643608,-487.0,0.00059499,120]
[404460915,1770156643617,-487.0,0.00059499,120]
[404460916,1770156643626,-487.0,0.00059499,120]
[404460917,1770156643635,-487.0,0.00059499,120]
[404460918,1770156643645,-487.0,0.00059499,120]
[404460919,1770156643655,-487.0,0.00059499,120]
[404460920,1770156643664,-487.0,0.00059499,120]
[404460921,1770156643674,-635.69,0.00059499,120]
[404460922,1770156643683,-9948.7816,0.000595,120]
[404460923,1770156643692,-200.0,0.0006,120]
[404460924,1770156643701,-1000.0,0.0006,120]
[404460925,1770156643711,-151.0,0.0006,120]
[404460926,1770156643720,-82561.61436726,0.0006013,120]
[404460927,1770156643729,-185.4706062,0.00060137,30]
[404460928,1770156643738,-194.7135632,0.00060137,30]
[404460929,1770156643747,-604.1333812,0.00060137,30]
[404460930,1770156643756,-919.12403067,0.00060265,30]
[404460931,1770156643765,-23436.90050186,0.00060265,30]
[404460932,1770156643775,-9104.89,0.00060273,120]
[404460933,1770156643785,-500.0,0.00060273,120]
[404460934,1770156643795,-500.0,0.00060273,120]
[404460935,1770156643804,-200.0,0.00060273,120]
[404460936,1770156643812,-500.0,0.00060273,120]
[404460937,1770156643822,-500.0,0.00060273,120]
[404460938,1770156643831,-500.0,0.00060273,120]
[404460939,1770156643840,-500.0,0.00060273,55]
[404460940,1770156643850,-500.0,0.00060273,120]
[404460941,1770156643859,-5532.53,0.00060273,120]
[404460942,1770156643867,-500.0,0.00060273,120]
[404460943,1770156643876,-525.94,0.00060273,120]
[404460944,1770156643885,-500.0,0.00060273,120]
[404460945,1770156643895,-500.0,0.00060273,7]
[404460946,1770156643904,-410.64908,0.00060273,120]
[404460947,1770156643913,-500.0,0.00060273,120]
[404460948,1770156643921,-500.0,0.00060273,120]
[404460949,1770156643930,-500.0,0.00060273,120]
[404460950,1770156643940,-299.42937157,0.00060273,120]
[404460951,1770156643950,-518.1,0.00060273,120]
[404460952,1770156643959,-577.02736862,0.00060273,120]
[404460953,1770156643968,-500.0,0.00060273,120]
[404460954,1770156643977,-541.07,0.00060273,120]
[404460955,1770156643986,-150.0,0.00060273,120]
[404460956,1770156643996,-500.0,0.00060273,120]
[404460957,1770156644005,-610.95,0.00060273,120]
[404460958,1770156644014,-500.0,0.00060273,2]
[404460959,1770156644023,-500.0,0.00060273,120]
[404460960,1770156644032,-1685.8,0.00060273,30]
[404460961,1770156644041,-1000.68,0.00060273,120]
[404460962,1770156644050,-664.41,0.00060273,120]
[404460963,1770156644060,-500.0,0.00060273,120]
[404460964,1770156644069,-457.46955725,0.00060273,120]
[404460965,1770156644080,-832.89,0.00060273,120]
[404460966,1770156644089,-1150.27,0.00060273,120]
[404460967,1770156644098,-471.199154,0.00060273,120]
[404460968,1770156644107,-2555.38,0.00060273,120]
[404460969,1770156644116,-500.0,0.00060273,120]
[404460970,1770156644126,-540.0,0.00060273,120]
[404460971,1770156644135,-500.0,0.00060273,120]
[404460972,1770156644144,-500.0,0.00060273,120]
[404460973,1770156644153,-500.0,0.00060273,120]
[404460974,1770156644161,-1966.24,0.00060273,120]
[404460975,1770156644171,-2436.1,0.00060273,21]
[404460976,1770156644180,-771.22,0.00060273,120]
[404460977,1770156644189,-4552.86,0.00060273,2]
[404460978,1770156644198,-1620.25,0.00060273,120]
[404460979,1770156644207,-500.0,0.00060273,120]
[404460980,1770156644216,-637.38,0.00060273,120]
[404460981,1770156644225,-502.83,0.00060273,120]
[404460983,1770156644235,-755.7,0.00060273,120]
[404460984,1770156644246,-6331.59,0.00060273,120]
[404460986,1770156644263,-208.030412,0.00060273,120]
[404460991,1770156644275,-500.0,0.00060273,120]
[404460993,1770156644288,-489.60726262,0.00060273,120]
[404460994,1770156644300,-500.0,0.00060273,120]
[404460995,1770156644312,-500.0,0.00060273,120]
[404460996,1770156644324,-1000.0,0.00060273,2]
[404460997,1770156644334,-2000.0,0.00060273,120]
[404460998,1770156644344,-2000.0,0.00060273,120]
[404460999,1770156644356,-2000.0,0.00060273,120]
[404461000,1770156644368,-16493.78,0.00060273,90]
[404461001,1770156644379,-3288.94,0.00060273,2]
[404461002,1770156644392,-1000.0,0.00061,120]
[404461003,1770156644404,-151.0,0.00061,120]
[404461004,1770156644417,-1000.0,0.00062,120]
[404461005,1770156644428,-151.0,0.00062,120]
[404461006,1770156644439,-1000.0,0.00063,120]
[404461007,1770156644451,-151.0,0.00063,120]
[404461008,1770156644463,-500.0,0.00063013,120]
[404461009,1770156644475,-500.0,0.00063013,120]
[404461010,1770156644486,-200.0,0.00063013,120]
[404461011,1770156644498,-500.0,0.00063013,120]
[404461012,1770156644509,-563.56000031,0.00063013,120]
[404461013,1770156644519,-500.0,0.00063013,120]
[404461014,1770156644531,-512.81015088,0.00063013,120]
[404461015,1770156644543,-500.0,0.00063013,120]
[404461016,1770156644554,-500.0,0.00063013,55]
[404461017,1770156644565,-500.0,0.00063013,120]
[404461018,1770156644577,-5532.53,0.00063013,120]
[404461019,1770156644589,-500.0,0.00063013,120]
[404461020,1770156644600,-525.94,0.00063013,120]
[404461021,1770156644611,-500.0,0.00063013,120]
[404461022,1770156644623,-500.0,0.00063013,7]
[404461023,1770156644633,-500.0,0.00063013,120]
[404461024,1770156644644,-500.0,0.00063013,120]
[404461025,1770156644654,-518.1,0.00063013,120]
[404461026,1770156644666,-500.0,0.00063013,120]
[404461027,1770156644676,-541.07,0.00063013,120]
[404461028,1770156644688,-150.0,0.00063013,120]
[404461029,1770156644699,-500.0,0.00063013,120]
[404461030,1770156644710,-610.95,0.00063013,120]
[404461031,1770156644722,-500.0,0.00063013,2]
[404461032,1770156644733,-490.0,0.00063013,120]
[404461033,1770156644743,-1685.8,0.00063013,30]
[404461034,1770156644755,-1000.68,0.00063013,120]
[404461035,1770156644767,-664.41,0.00063013,120]
[404461036,1770156644778,-832.89,0.00063013,120]
[404461037,1770156644791,-1150.27,0.00063013,120]
[404461038,1770156644802,-2555.38,0.00063013,120]
[404461039,1770156644812,-500.0,0.00063013,120]
[404461040,1770156644822,-151.38516647,0.00063013,120]
[404461041,1770156644832,-500.0,0.00063013,120]
[404461042,1770156644841,-500.0,0.00063013,120]
[404461043,1770156644852,-1966.24,0.00063013,120]
[404461044,1770156644862,-2436.1,0.00063013,21]
[404461045,1770156644873,-771.22,0.00063013,120]
[404461046,1770156644886,-4552.86,0.00063013,2]
[404461047,1770156644898,-1620.25,0.00063013,120]
[404461048,1770156644910,-500.0,0.00063013,120]
[404461049,1770156644920,-637.38,0.00063013,120]
[404461050,1770156644930,-502.83,0.00063013,120]
[404461051,1770156644940,-755.7,0.00063013,120]
[404461052,1770156644951,-6331.59,0.00063013,120]
[404461053,1770156644962,-219.0502527,0.00063013,120]
[404461054,1770156644973,-500.0,0.00063013,120]
[404461055,1770156644987,-500.0,0.00063013,120]
[404461056,1770156644998,-1069.82509401,0.00063013,2]
[404461057,1770156645008,-939.58964499,0.00063013,120]
[404461058,1770156645020,-16493.78,0.00063013,90]
[404461059,1770156645031,-3288.94,0.00063013,2]
[404461060,1770156645042,-1000.0,0.00064,120]
[404461061,1770156645052,-151.0,0.00064,120]
[404461062,1770156645063,-200.0,0.0006441,120]
[404461063,1770156645072,-1441.53,0.000645,14]
[404461064,1770156645086,-3000.0,0.000645,120]
[404461065,1770156645096,-23592.68857346,0.00064804,2]
[404461066,1770156645107,-1000.0,0.00065,120]
[404461067,1770156645118,-151.0,0.00065,120]
[404461068,1770156645129,-13375.51858566,0.00065003,30]
[404461069,1770156645139,-179.78425889,0.00065181,60]
[404461070,1770156645150,-612.19,0.000652,30]
[404461071,1770156645162,-500.0,0.00065753,120]
[404461072,1770156645172,-500.0,0.00065753,120]
[404461073,1770156645183,-200.0,0.00065753,120]
[404461074,1770156645194,-500.0,0.00065753,120]
[404461075,1770156645205,-500.0,0.00065753,120]
[404461076,1770156645217,-500.0,0.00065753,55]
[404461077,1770156645227,-500.0,0.00065753,120]
[404461078,1770156645238,-5532.53,0.00065753,120]
[404461079,1770156645251,-500.0,0.00065753,120]
[404461080,1770156645262,-525.94,0.00065753,120]
[404461081,1770156645274,-500.0,0.00065753,120]
[404461082,1770156645287,-500.0,0.00065753,120]
[404461083,1770156645298,-545.93623,0.00065753,120]
[404461084,1770156645309,-518.1,0.00065753,120]
[404461085,1770156645319,-500.0,0.00065753,120]
[404461086,1770156645332,-541.07,0.00065753,120]
[404461087,1770156645343,-150.0,0.00065753,120]
[404461088,1770156645355,-500.0,0.00065753,120]
[404461089,1770156645365,-610.95,0.00065753,120]
[404461090,1770156645376,-500.0,0.00065753,2]
[404461091,1770156645387,-1685.8,0.00065753,30]
[404461092,1770156645397,-1000.68,0.00065753,120]
[404461093,1770156645407,-664.41,0.00065753,120]
[404461094,1770156645418,-832.89,0.00065753,120]
[404461095,1770156645428,-1150.27,0.00065753,120]
[404461096,1770156645438,-2555.38,0.00065753,120]
[404461097,1770156645449,-500.0,0.00065753,120]
[404461098,1770156645459,-500.0,0.00065753,120]
[404461099,1770156645471,-273.84100057,0.00065753,120]
[404461100,1770156645482,-1966.24,0.00065753,120]
[404461101,1770156645492,-2436.1,0.00065753,21]
[404461102,1770156645501,-771.22,0.00065753,120]
[404461103,1770156645511,-4552.86,0.00065753,2]
[404461104,1770156645520,-1620.25,0.00065753,120]
[404461105,1770156645529,-500.0,0.00065753,120]
[404461106,1770156645539,-637.38,0.00065753,120]
[404461107,1770156645547,-502.83,0.00065753,120]
[404461108,1770156645556,-755.7,0.00065753,120]
[404461109,1770156645566,-6331.59,0.00065753,120]
[404461110,1770156645575,-500.0,0.00065753,120]
[404461111,1770156645585,-500.0,0.00065753,120]
[404461112,1770156645594,-16493.78,0.00065753,90]
[404461113,1770156645605,-3288.94,0.00065753,2]
[404461114,1770156645614,-150.0,0.00065901,120]
[404461115,1770156645625,-253.021515,0.00065901,120]
[404461116,1770156645636,-356.04303,0.00065901,120]
[404461117,1770156645646,-459.064546,0.00065901,120]
[404461118,1770156645656,-562.086061,0.00065901,120]
[404461119,1770156645666,-665.107576,0.00065901,120]
[404461120,1770156645675,-768.129092,0.00065901,120]
[404461121,1770156645684,-871.150607,0.00065901,120]
[404461122,1770156645693,-974.172122,0.00065901,120]
[404461123,1770156645852,-1077.193638,0.00065901,120]
[404461124,1770156645862,-1000.0,0.00066,120]
[404461125,1770156645872,-151.0,0.00066,120]
[404461126,1770156645883,-150.0,0.00066006,120]
[404461127,1770156645892,-241.3425,0.00066006,120]
[404461128,1770156645902,-332.685001,0.00066006,120]
[404461129,1770156645911,-424.027502,0.00066006,120]
[404461130,1770156645920,-515.370002,0.00066006,120]
[404461131,1770156645930,-606.712503,0.00066006,120]
[404461132,1770156645939,-698.055004,0.00066006,120]
[404461133,1770156645948,-789.397505,0.00066006,120]
[404461134,1770156645958,-880.740005,0.00066006,120]
[404461135,1770156645967,-972.082506,0.00066006,120]
[404461136,1770156645976,-150.0,0.00066119,120]
[404461137,1770156645985,-580.374738,0.00066119,120]
[404461138,1770156645994,-1010.749476,0.00066119,120]
[404461139,1770156646003,-1441.124214,0.00066119,120]
[404461140,1770156646012,-1871.498952,0.00066119,120]
[404461141,1770156646022,-2301.87369,0.00066119,120]
[404461142,1770156646031,-150.0,0.00066119,120]
[404461143,1770156646040,-268.908293,0.00066119,120]
[404461144,1770156646049,-2732.248428,0.00066119,120]
[404461145,1770156646059,-387.816586,0.00066119,120]
[404461146,1770156646068,-3162.623166,0.00066119,120]
[404461147,1770156646077,-506.724879,0.00066119,120]
[404461148,1770156646086,-3592.997904,0.00066119,120]
[404461149,1770156646095,-625.633172,0.00066119,120]
[404461150,1770156646104,-4023.372642,0.00066119,120]
[404461151,1770156646114,-744.541465,0.00066119,120]
[404461152,1770156646123,-863.449759,0.00066119,120]
[404461153,1770156646132,-982.358052,0.00066119,120]